[Event "56th Rubinstein Memorial D 2020"]
[Site "Polanica Zdroj"]
[Date "2020.08.23"]
[Round "9.17"]
[White "Jurkiewicz, Joanna"]
[Black "Ochenduszko, Bartosz"]
[Result "1/2-1/2"]
[ECO "C01"]
[WhiteElo "1691"]
[BlackElo "1531"]
[Annotator "NA RC"]
[PlyCount "142"]
[EventDate "2020.08.15"]
[EventType "swiss"]
[EventCountry "POL"]
[SourceTitle "playchess.com"]
[Source "ChessBase"]
[SourceQuality "1"]
[TimeControl "40/5400+30:1800+30"]

1. e4 {[%emt 0:00:00]} e6 {[%emt 0:00:00]} 2. d4 {[%emt 0:00:00]} d5 {[%emt 0:00:00]} 3. exd5 {[%emt 0:00:03]} exd5 {[%emt 0:00:00]} 4. Bd3 {[%emt 0:00:37]} Bd6 {[%emt 0:00:00]} 5. Ne2 {[%emt 0:01:38]} Nf6 {[%emt 0:00:40]} 6. Bf4 {[%emt 0:11:33]} O-O {[%emt 0:01:56]} 7. Nbc3 {[%emt 0:02:21]} Bxf4 {[%emt 0:04:23]} 8. Nxf4 {[%emt 0:00:09]} Re8+ {[%emt 0:00:24]} 9. Be2 {[%emt 0:04:37]} Bf5 {[%emt 0:01:30]} 10. O-O {[%emt 0:03:06]} c6 {[%emt 0:01:46]} 11. Re1 {[%emt 0:02:56]} Ne4 {[%emt 0:11:22]} 12. Nxe4 {[%emt 0:02:01]} dxe4 {[%emt 0:03:03]} 13. Bc4 {[%emt 0:02:57]} b5 {[%emt 0:04:40]} 14. Bf1 {[%emt 0:06:24]} Qd6 {[%emt 0:04:09]} 15. g3 {[%emt 0:04:17]} Nd7 {[%emt 0:03:25]} 16. Bg2 {[%emt 0:07:01]} Nf6 {[%emt 0:01:09]} 17. a4 {[%emt 0:07:12]} b4 {[%emt 0:01:45]} 18. f3 {[%emt 0:06:44]} Rad8 {[%emt 0:09:31]} 19. c3 {[%emt 0:01:47]} bxc3 {[%emt 0:01:21]} 20. bxc3 {[%emt 0:00:07]} c5 {[%emt 0:01:48]} 21. d5 {[%emt 0:03:52]} c4 {[%emt 0:04:38]} 22. Qc2 {[%emt 0:08:39]} Nxd5 {[%emt 0:06:17]} 23. Nxd5 {[%emt 0:00:18]} Qxd5 {[%emt 0:01:35]} 24. fxe4 {[%emt 0:00:26]} Qc5+ {[%emt 0:00:18]} 25. Kh1 {[%emt 0:00:20]} Bg6 {[%emt 0:00:38]} 26. Rad1 {[%emt 0:02:21]} Rb8 {[%emt 0:07:10]} 27. Rd4 {[%emt 0:03:07]} f6 {[%emt 0:04:04]} 28. Bf1 {[%emt 0:06:08]} Bf7 {[%emt 0:00:17]} 29. Rb1 {[%emt 0:02:47]} Rxb1 {[%emt 0:01:52]} 30. Qxb1 {[%emt 0:00:01]} Qc6 {[%emt 0:00:40]} 31. Qb5 {[%emt 0:02:00]} Qxb5 {[%emt 0:17:22]} 32. axb5 {[%emt 0:00:01]} Rb8 {[%emt 0:00:21]} 33. Rd7 {[%emt 0:00:45]} g6 {[%emt 0:02:12]} 34. Rxa7 {[%emt 0:00:41]} Rxb5 {[%emt 0:00:05]} 35. Rxf7 {[%emt 0:00:44]} Rb1 {[%emt 0:02:46]} 36. Rxf6 {[%emt 0:00:10]} Kg7 {[%emt 0:03:03]} 37. Rf3 {[%emt 0:01:22]} Re1 {[%emt 0:00:12]} 38. Kg2 {[%emt 0:00:22]} Rxe4 {[%emt 0:00:15]} 39. Rf4 {[%emt 0:00:20]} Re1 {[%emt 0:01:12]} 40. Rxc4 {[%emt 0:00:22]} Kf6 {[%emt 0:00:28]} 41. Rc8 {[%emt 0:30:58]} Rc1 {[%emt 0:30:33]} 42. c4 {[%emt 0:00:27]} g5 {[%emt 0:01:11]} 43. c5 {[%emt 0:00:52]} Rc2+ {[%emt 0:00:34]} 44. Kg1 {[%emt 0:01:10]} h5 {[%emt 0:00:46]} 45. c6 {[%emt 0:01:06]} h4 {[%emt 0:00:28]} 46. c7 {[%emt 0:00:45]} Ke7 {[%emt 0:00:05]} 47. Bd3 {[%emt 0:03:41]} Rc5 {[%emt 0:00:54]} 48. Kg2 {[%emt 0:00:57]} Kd7 {[%emt 0:00:25]} 49. Rg8 {[%emt 0:01:13]} Kxc7 {[%emt 0:00:08]} 50. Kh3 {[%emt 0:00:30]} Rd5 {[%emt 0:01:04]} 51. Be4 {[%emt 0:00:30]} Re5 {[%emt 0:00:15]} 52. Bf3 {[%emt 0:00:21]} Rb5 {[%emt 0:00:36]} 53. Kg4 {[%emt 0:00:16]} Rb2 {[%emt 0:00:21]} 54. Kh3 {[%emt 0:00:54]} Rb5 {[%emt 0:00:01]} 55. Be4 {[%emt 0:00:42]} Kd7 {[%emt 0:00:49]} 56. Rf8 {[%emt 0:01:19]} Rb4 {[%emt 0:00:54]} 57. Bg6 {[%emt 0:01:06]} Rb6 {[%emt 0:00:33]} 58. Bh7 {[%emt 0:00:30]} Rh6 {[%emt 0:00:32]} 59. Bf5+ {[%emt 0:01:12]} Ke7 {[%emt 0:00:11]} 60. Ra8 hxg3+ {[%emt 0:00:13]} 61. Kxg3 {[%emt 0:00:13]} Kf7 {[%emt 0:01:04]} 62. h3 {[%emt 0:00:16]} Rb6 {[%emt 0:00:31]} 63. Kg4 {[%emt 0:00:13]} Rb2 {[%emt 0:00:31]} 64. Kxg5 {[%emt 0:00:03]} Rg2+ {[%emt 0:00:29]} 65. Bg4 {[%emt 0:00:02]} Rg1 {[%emt 0:00:32]} 66. h4 {[%emt 0:00:12]} Kg7 {[%emt 0:00:07]} 67. h5 {[%emt 0:00:14]} Kh7 {[%emt 0:00:22]} 68. Ra7+ {[%emt 0:01:02]} Kh8 {[%emt 0:00:06]} 69. Kf5 {[%emt 0:00:29]} Rf1+ {[%emt 0:01:09]} 70. Kg6 {[%emt 0:00:06]} Rf8 {[%emt 0:00:12]} 71. Be6 {[%emt 0:00:50]} Rf6+ {[%emt 0:00:15]} 1/2-1/2

[Event "56th Rubinstein Memorial D 2020"]
[Site "Polanica Zdroj"]
[Date "2020.08.23"]
[Round "9.18"]
[White "Zyla, Tomasz"]
[Black "Wilgosz, Jan"]
[Result "1/2-1/2"]
[ECO "E92"]
[WhiteElo "1543"]
[BlackElo "1617"]
[Annotator "NA RC"]
[PlyCount "58"]
[EventDate "2020.08.15"]
[EventType "swiss"]
[EventCountry "POL"]
[SourceTitle "playchess.com"]
[Source "ChessBase"]
[SourceQuality "1"]
[TimeControl "40/5400+30:1800+30"]

1. d4 {[%emt 0:00:00]} Nf6 {[%emt 0:05:12]} 2. Nf3 {[%emt 0:00:00]} g6 {[%emt 0:00:24]} 3. c4 {[%emt 0:00:00]} Bg7 {[%emt 0:00:12]} 4. Nc3 {[%emt 0:00:00]} O-O {[%emt 0:00:18]} 5. e4 {[%emt 0:00:00]} d6 {[%emt 0:00:26]} 6. Be2 {[%emt 0:00:15]} e5 {[%emt 0:00:27]} 7. d5 {[%emt 0:00:11]} a5 {[%emt 0:00:37]} 8. h3 {[%emt 0:01:38]} Nh5 {[%emt 0:03:30]} 9. O-O {[%emt 0:03:47]} Na6 {[%emt 0:08:06]} 10. Na4 {[%emt 0:05:55]} Bd7 {[%emt 0:06:04]} 11. Nh2 {[%emt 0:04:50]} Nf4 {[%emt 0:04:36]} 12. Bxf4 {[%emt 0:06:29]} exf4 {[%emt 0:00:39]} 13. Nc3 {[%emt 0:01:12]} Nc5 {[%emt 0:03:32]} 14. Bd3 {[%emt 0:04:47]} f5 {[%emt 0:07:40]} 15. exf5 {[%emt 0:17:00]} Nxd3 {[%emt 0:04:40]} 16. Qxd3 {[%emt 0:00:12]} Bxf5 {[%emt 0:00:39]} 17. Qd2 {[%emt 0:00:07]} f3 {[%emt 0:07:29]} 18. Nxf3 {[%emt 0:03:28]} Bxh3 {[%emt 0:00:55]} 19. Ng5 {[%emt 0:02:46]} Bf5 {[%emt 0:06:04]} 20. Ne6 {[%emt 0:03:09]} Bxe6 {[%emt 0:01:35]} 21. dxe6 {[%emt 0:00:05]} Bxc3 {[%emt 0:03:02]} 22. Qxc3 {[%emt 0:02:12]} Qf6 {[%emt 0:01:39]} 23. Rae1 {[%emt 0:02:01]} Qxc3 {[%emt 0:04:52]} 24. bxc3 {[%emt 0:00:04]} Rf4 {[%emt 0:07:32]} 25. c5 {[%emt 0:05:03]} dxc5 {[%emt 0:02:45]} 26. Rd1 {[%emt 0:10:58]} Re4 {[%emt 0:01:44]} 27. Rd7 {[%emt 0:00:28]} Rxe6 {[%emt 0:04:16]} 28. Rxc7 {[%emt 0:00:11]} Rd8 {[%emt 0:09:11]} 29. Rxb7 {[%emt 0:10:52]} Rd2 {[%emt 0:02:45]} 1/2-1/2

[Event "56th Rubinstein Memorial D 2020"]
[Site "Polanica Zdroj"]
[Date "2020.08.23"]
[Round "9.19"]
[White "Ursnik, Patryk"]
[Black "Karalchuk, Alieksej"]
[Result "1/2-1/2"]
[ECO "B01"]
[WhiteElo "1601"]
[BlackElo "1493"]
[Annotator "NA RC"]
[PlyCount "36"]
[EventDate "2020.08.15"]
[EventType "swiss"]
[EventCountry "POL"]
[SourceTitle "playchess.com"]
[Source "ChessBase"]
[SourceQuality "1"]
[TimeControl "40/5400+30:1800+30"]

1. e4 {[%emt 0:08:11]} d5 {[%emt 0:11:08]} 2. exd5 {[%emt 0:00:04]} Nf6 {[%emt 0:00:06]} 3. Nc3 {[%emt 0:00:16]} Nxd5 {[%emt 0:00:09]} 4. Nxd5 {[%emt 0:00:24]} Qxd5 {[%emt 0:00:08]} 5. Qf3 {[%emt 0:00:03]} Qxf3 {[%emt 0:00:17]} 6. Nxf3 {[%emt 0:00:06]} Bg4 {[%emt 0:00:11]} 7. Be2 {[%emt 0:00:19]} Bxf3 {[%emt 0:00:32]} 8. Bxf3 {[%emt 0:00:05]} c6 {[%emt 0:00:08]} 9. d3 {[%emt 0:00:09]} e6 {[%emt 0:00:14]} 10. Bf4 {[%emt 0:00:13]} Bc5 {[%emt 0:00:35]} 11. Bxb8 {[%emt 0:00:09]} Rxb8 {[%emt 0:00:07]} 12. O-O {[%emt 0:00:13]} O-O {[%emt 0:00:15]} 13. a3 {[%emt 0:00:28]} Rfd8 {[%emt 0:00:27]} 14. Rfe1 {[%emt 0:00:16]} Rd4 {[%emt 0:00:27]} 15. Re4 {[%emt 0:00:06]} Rxe4 {[%emt 0:00:09]} 16. dxe4 {[%emt 0:00:09]} Rd8 {[%emt 0:00:09]} 17. Rd1 {[%emt 0:00:07]} Rxd1+ {[%emt 0:00:07]} 18. Bxd1 {[%emt 0:00:05]} a6 {[%emt 0:00:09]} 1/2-1/2

[Event "56th Rubinstein Memorial D 2020"]
[Site "Polanica Zdroj"]
[Date "2020.08.23"]
[Round "9.20"]
[White "Wolska, Marta"]
[Black "Sidlo, Szymon"]
[Result "0-1"]
[ECO "D33"]
[WhiteElo "1551"]
[BlackElo "1396"]
[Annotator "NA"]
[PlyCount "66"]
[EventDate "2020.08.15"]
[EventType "swiss"]
[EventCountry "POL"]
[SourceTitle "playchess.com"]
[Source "ChessBase"]
[SourceQuality "1"]
[TimeControl "40/5400+30:1800+30"]

1. d4 {[%emt 0:00:00]} e6 {[%emt 0:02:54]} 2. c4 {[%emt 0:00:00]} d5 {[%emt 0:00:03]} 3. Nc3 {[%emt 0:00:26]} c5 {[%emt 0:00:05]} 4. cxd5 {[%emt 0:00:06]} exd5 {[%emt 0:00:04]} 5. Nf3 {[%emt 0:00:08]} Nc6 {[%emt 0:00:04]} 6. g3 {[%emt 0:00:47]} Nf6 {[%emt 0:00:09]} 7. Bg2 {[%emt 0:00:27]} Be6 {[%emt 0:00:24]} 8. O-O {[%emt 0:00:35]} Be7 {[%emt 0:00:56]} 9. a3 {[%emt 0:05:48]} O-O {[%emt 0:00:43]} 10. Bg5 {[%emt 0:02:53]} c4 {[%emt 0:03:48]} 11. Re1 {[%emt 0:00:35]} Na5 {[%emt 0:03:02]} 12. Bxf6 {[%emt 0:01:50]} Bxf6 {[%emt 0:00:06]} 13. e4 {[%emt 0:00:33]} Nb3 {[%emt 0:01:51]} 14. Ra2 {[%emt 0:00:10]} dxe4 {[%emt 0:07:33]} 15. Nxe4 {[%emt 0:00:11]} Bxd4 {[%emt 0:01:55]} 16. Neg5 {[%emt 0:02:42]} Qb6 {[%emt 0:02:30]} 17. Qc2 {[%emt 0:02:01]} g6 {[%emt 0:00:33]} 18. Nxe6 {[%emt 0:02:32]} fxe6 {[%emt 0:00:21]} 19. Nxd4 {[%emt 0:01:40]} Nxd4 {[%emt 0:02:08]} 20. Qd2 {[%emt 0:04:09]} Rad8 {[%emt 0:01:05]} 21. Qe3 {[%emt 0:02:09]} Rd6 {[%emt 0:03:52]} 22. Rc1 {[%emt 0:02:06]} Qb3 {[%emt 0:02:50]} 23. Qe5 {[%emt 0:03:17]} Qxa2 {[%emt 0:02:32]} 24. Qxd6 {[%emt 0:00:38]} Qxb2 {[%emt 0:01:05]} 25. Rf1 {[%emt 0:00:12]} Qb6 {[%emt 0:04:46]} 26. Qxb6 {[%emt 0:04:23]} axb6 {[%emt 0:00:06]} 27. Bxb7 {[%emt 0:00:06]} c3 {[%emt 0:01:08]} 28. Kg2 {[%emt 0:00:57]} c2 {[%emt 0:01:14]} 29. Rc1 {[%emt 0:01:14]} Rf5 {[%emt 0:02:23]} 30. Be4 {[%emt 0:03:19]} Rc5 {[%emt 0:00:30]} 31. f3 {[%emt 0:00:54]} Rc3 {[%emt 0:01:19]} 32. a4 {[%emt 0:00:44]} Rc4 {[%emt 0:01:35]} 33. Bd3 {[%emt 0:00:40]} Rxa4 0-1